bitfinex/quotes_SOLUSD_20250131
["timestamp","ask_amount","ask_price","bid_price","bid_amount"]
[1738320856279,20.0,236.33,236.32,0.063]
[1738320857399,33.41184853,236.33,236.32,0.063]
[1738320860078,35.01314853,236.33,236.32,0.063]
[1738320874912,33.41184853,236.33,236.32,0.063]
[1738320875520,13.41184853,236.33,236.32,0.063]
[1738320879391,5.76770652,236.48,236.47,2.0]
[1738320879603,5.76770652,236.48,236.47,10.24654354]
[1738320879888,5.76770652,236.48,236.47,2.0]
[1738320881113,13.41184853,236.5,236.47,2.0]
[1738320882794,33.44184853,236.51,236.47,2.0]
[1738320883119,0.03,236.51,236.47,2.0]
[1738320883413,13.41184853,236.5,236.47,2.0]
[1738320883605,13.41184853,236.5,236.47,1.0]
[1738320884898,13.41184853,236.5,236.48,1.0]
[1738320889725,13.41184853,236.5,236.45,1.0]
[1738320890224,13.41184853,236.46,236.44,1.0]
[1738320890816,13.41184853,236.46,236.42,1.0]
[1738320891206,13.41184853,236.46,236.4,1.0]
[1738320891512,13.41184853,236.46,236.42,1.0]
[1738320891921,13.41184853,236.46,236.39,1.0]
[1738320891922,13.41184853,236.46,236.4,1.0]
[1738320893825,20.0,236.43,236.37,1.0]
[1738320894009,13.41184853,236.42,236.36,2.0]
[1738320899930,13.41184853,236.42,236.36,1.0]
[1738320900108,13.41184853,236.42,236.35,0.063]
[1738320902621,13.41184853,236.42,236.36,1.0]
[1738320904027,13.41184853,236.38,236.35,0.063]
[1738320906817,33.41184853,236.36,236.35,0.063]
[1738320907539,33.41184853,236.33,236.3,0.063]
[1738320907711,13.41184853,236.32,236.3,0.063]
[1738320924757,33.41184853,236.31,236.3,0.063]
[1738320926757,13.41184853,236.3,236.28,0.063]
[1738320938538,13.41184853,236.3,236.28,1.063]
[1738320940861,13.44184853,236.3,236.28,1.063]
[1738320951574,20.0,236.29,236.28,0.063]
[1738320952566,33.41184853,236.29,236.23,2.0]
[1738320952766,13.41184853,236.28,236.23,2.0]
[1738320957472,13.41184853,236.28,236.22,0.063]
[1738320957679,13.41184853,236.24,236.22,0.063]
[1738320966780,33.41184853,236.24,236.22,0.063]
[1738320968590,33.41184853,236.24,236.18,0.063]
[1738320969097,34.93064853,236.24,236.18,0.063]
[1738320969380,115.53064853,236.24,236.18,0.063]
[1738320969959,115.53064853,236.24,236.12,1.0]
[1738320970984,115.53064853,236.24,236.14,1.0]
[1738320971482,115.53064853,236.24,236.15,1.0]
[1738320971695,95.53064853,236.24,236.18,1.0]
[1738320972076,13.41184853,236.21,236.18,1.0]
[1738320972896,20.0,236.19,236.18,1.0]
[1738320973411,13.41184853,236.18,236.16,1.0]
[1738320974367,13.41184853,236.18,236.17,1.0]
[1738320979294,13.41184853,236.18,236.17,1.0]
[1738320984302,13.41184853,236.18,236.12,2.0]
[1738320984678,13.41184853,236.18,236.14,1.0]
[1738320988500,20.0,236.15,236.14,1.0]
[1738320988712,13.41184853,236.14,236.12,1.0]
[1738320989408,13.41184853,236.14,236.13,0.063]
[1738321018005,13.41184853,236.14,236.13,1.063]
[1738321018201,13.41184853,236.14,236.13,0.063]
[1738321041045,20.0,236.15,236.13,1.063]
[1738321041550,20.0,236.15,236.14,1.0]
[1738321046959,19.99489788,236.18,236.16,1.0]
[1738321048180,13.44184853,236.18,236.16,1.0]
[1738321051982,20.0,236.16,236.15,1.0]
[1738321053560,13.44184853,236.18,236.16,1.0]
[1738321055760,13.44184853,236.18,236.14,1.0]
[1738321055968,13.44184853,236.18,236.16,1.0]
[1738321056166,13.44184853,236.18,236.14,1.0]
[1738321057178,20.03,236.18,236.16,1.0]
[1738321057382,13.41184853,236.17,236.16,1.0]
[1738321057768,13.41184853,236.17,236.14,1.0]
[1738321063885,13.41184853,236.17,236.16,1.0]
[1738321072068,20.0,236.17,236.16,2.0]
[1738321072273,0.03,236.18,236.16,2.0]
[1738321074596,0.03,236.18,236.16,6.2973]
[1738321079387,0.03,236.18,236.16,2.063]
[1738321081501,0.03,236.18,236.16,1.063]
[1738321085400,0.03,236.18,236.16,2.063]
[1738321100318,0.03,236.18,236.16,0.063]
[1738321100916,13.44184853,236.18,236.16,0.063]
[1738321101494,13.44184853,236.18,236.16,1.063]
[1738321104603,13.44184853,236.18,236.13,1.063]
[1738321104604,13.41184853,236.14,236.13,1.063]
[1738321105516,13.41184853,236.14,236.13,0.063]
[1738321110197,33.41184853,236.12,236.11,0.063]
[1738321110521,13.41184853,236.11,236.08,1.063]
[1738321110722,13.41184853,236.11,236.08,0.063]
[1738321112039,20.0,236.09,236.08,0.063]
[1738321124737,33.41184853,236.09,236.08,0.063]
[1738321127351,13.41184853,236.09,236.08,0.063]
[1738321128025,20.0,236.12,236.08,1.063]
[1738321128223,13.41184853,236.11,236.08,1.063]
[1738321131357,13.41184853,236.11,236.08,0.063]
[1738321132845,13.41184853,236.11,236.08,1.063]
[1738321134852,13.41184853,236.11,236.08,0.063]
[1738321137848,13.41184853,236.11,236.08,1.063]
[1738321138560,13.41184853,236.11,236.08,0.063]
[1738321141751,13.41184853,236.11,236.08,1.063]
[1738321145170,13.44184853,236.11,236.08,1.063]
[1738321146173,13.44184853,236.11,236.1,1.0]
[1738321146174,0.03,236.11,236.1,1.0]
[1738321146362,20.03,236.11,236.1,1.0]
[1738321148656,0.03,236.11,236.1,1.0]
[1738321155188,0.03,236.11,236.1,5.2354]
[1738321155490,0.03,236.11,236.1,1.0]
[1738321156076,0.03,236.11,236.1,5.2354]
[1738321158869,0.03,236.11,236.1,1.0]
[1738321159663,0.03,236.11,236.1,83.3]
[1738321165484,0.03,236.11,236.1,1.0]
[1738321168579,0.03,236.11,236.1,1.063]
[1738321207828,0.03,236.11,236.1,5.93356028]
[1738321209127,0.03,236.11,236.1,1.69816028]
[1738321210928,0.03,236.11,236.1,1.063]
[1738321217398,0.03,236.11,236.1,87.5984]
[1738321228354,0.03,236.11,236.1,83.363]
[1738321232535,0.03,236.11,236.1,1.063]
[1738321238722,0.03,236.11,236.1,5.2984]
[1738321239229,0.03,236.11,236.1,1.063]
[1738321255352,0.03,236.11,236.1,88.23355451]
[1738321255532,0.03,236.11,236.1,224.5984]
[1738321260044,0.03,236.11,236.1,239.01024853]
[1738321261555,0.03,236.11,236.1,224.5984]
[1738321261759,0.03,236.11,236.1,220.363]
[1738321262337,0.03,236.11,236.1,224.5984]
[1738321264763,0.03,236.11,236.1,239.01024853]
[1738321265064,0.03,236.11,236.1,246.73974853]
[1738321266661,0.03,236.11,236.1,230.7148]
[1738321266867,0.03,236.11,236.1,224.5984]
[1738321269059,0.03,236.11,236.1,83.363]
[1738321272653,0.03,236.11,236.1,88.23354142]
[1738321272855,0.03,236.11,236.1,87.5984]
[1738321273679,0.03,236.11,236.1,101.01024853]
[1738321273861,0.03,236.11,236.1,103.01024853]
[1738321274171,0.03,236.11,236.1,415.01024853]
[1738321274554,0.03,236.11,236.1,552.01024853]
[1738321275146,0.03,236.11,236.1,240.01024853]
[1738321277058,0.03,236.11,236.1,246.12274853]
[1738321278159,0.03,236.11,236.1,558.12274853]
[1738321280762,0.03,236.18,236.17,14.41184853]
[1738321280968,0.03,236.18,236.17,234.34671916]
[1738321281147,0.03,236.18,236.17,233.71184853]
[1738321281851,0.03,236.18,236.17,237.94604853]
[1738321282974,0.03,236.18,236.17,238.94604853]
[1738321284876,0.03,236.18,236.17,237.94604853]
[1738321290772,0.03,236.18,236.17,220.3]
[1738321292177,0.03,236.28,236.27,14.41184853]
[1738321292358,0.03,236.28,236.27,152.04647202]
[1738321292559,0.03,236.28,236.27,151.41184853]
[1738321292764,0.03,236.28,236.27,155.64424853]
[1738321299289,0.03,236.28,236.27,237.94424853]
[1738321300066,0.03,236.28,236.27,238.94424853]
[1738321301474,0.0001,236.28,236.27,238.94424853]
[1738321304476,0.0001,236.28,236.27,550.94424853]
[1738321305062,0.0001,236.28,236.27,241.68424853]
[1738321306074,0.0001,236.28,236.27,240.68424853]
[1738321308978,0.0001,236.28,236.27,241.68424853]
[1738321309793,0.0001,236.28,236.27,242.68424853]
[1738321313100,0.0001,236.28,236.27,554.68424853]
[1738321316082,0.03,236.32,236.29,3.0]
[1738321316083,0.0101,236.3,236.29,3.0]
[1738321316274,0.0101,236.3,236.29,17.04629032]
[1738321318203,0.0101,236.3,236.29,21.27829032]
[1738321319291,0.0101,236.3,236.29,333.27829032]
[1738321319497,0.0101,236.3,236.29,551.94384853]
[1738321323400,0.03,236.42,236.34,2.0]
[1738321323576,0.03,236.42,236.34,235.34624848]
[1738321323779,0.03,236.42,236.34,234.71184853]
[1738321325100,0.03,236.42,236.34,238.94294853]
[1738321325301,0.03,236.42,236.34,237.94294853]
[1738321326307,0.03,236.42,236.34,238.94294853]
[1738321326604,0.03,236.42,236.34,239.94294853]
[1738321329886,0.03,236.42,236.34,238.94294853]
[1738321330106,0.03,236.42,236.34,239.94294853]
[1738321332612,0.03,236.42,236.34,238.94294853]
[1738321332816,0.03,236.42,236.34,237.94294853]
[1738321333117,0.03,236.42,236.34,240.70294853]
[1738321335415,0.03,236.42,236.34,241.70294853]
[1738321336210,0.03,236.42,236.34,240.70294853]
[1738321342621,0.03,236.42,236.34,552.70294853]
[1738321345009,0.03,236.42,236.34,553.70294853]
[1738321348225,0.03,236.42,236.34,240.70294853]
[1738321349025,0.03,236.42,236.34,241.70294853]
[1738321349426,0.03,236.42,236.34,240.70294853]
[1738321351526,0.03,236.42,236.34,83.3]
[1738321351728,0.03,236.42,236.34,1.0]
[1738321351919,1.6662,236.36,236.34,1.0]
[1738321352931,1.5537,236.42,236.34,238.57745957]
[1738321353133,1.5537,236.42,236.34,237.94294853]
[1738321354609,1.5537,236.42,236.34,220.3]
[1738321358538,1.5537,236.42,236.34,83.3]
[1738321359517,1.5537,236.42,236.34,96.71184853]
[1738321359732,1.5537,236.42,236.34,100.94294853]
[1738321362538,1.5537,236.42,236.34,101.94294853]
[1738321364534,1.5537,236.42,236.34,238.94294853]
[1738321368038,0.03,236.35,236.34,238.94294853]
[1738321384851,0.0001,236.35,236.34,238.94294853]
[1738321387554,0.0001,236.35,236.34,243.59716454]
[1738321391154,1.5305,236.48,236.47,1.0]
[1738321391450,1.5305,236.48,236.47,15.04598007]
[1738321392759,1.5305,236.48,236.47,19.27478007]
[1738321393955,0.03,236.5,236.49,34.41184853]
[1738321394259,0.03,236.5,236.49,39.27448285]
[1738321394958,0.03,236.5,236.49,38.64034853]
[1738321395141,0.03,236.5,236.49,1.0]
[1738321405368,0.03,236.5,236.49,5.2285]
[1738321405680,0.03,236.5,236.49,18.64034853]
[1738321406278,0.03,236.5,236.49,1.0]
[1738321412870,0.03,236.5,236.49,7.51698045]
[1738321414191,0.03,236.5,236.49,12.53011372]
[1738321415993,0.03,236.5,236.49,7.51698045]
[1738321417570,0.03,236.5,236.49,1.0]
[1738321421774,0.03,236.5,236.47,1.0]
[1738321433623,0.03,236.5,236.49,1.0]
[1738321440729,0.03,236.5,236.47,1.0]
[1738321451710,0.03,236.5,236.44,1.0]
[1738321452114,0.03,236.5,236.42,1.063]
[1738321453833,0.03,236.5,236.44,1.0]
[1738321458841,20.0,236.48,236.42,1.063]
[1738321459834,20.0,236.48,236.42,0.063]
[1738321464622,20.0,236.46,236.42,0.063]
[1738321465741,21.07076369,236.46,236.42,0.063]
[1738321465932,20.0,236.46,236.42,0.063]
[1738321466542,20.0,236.46,236.42,1.063]
[1738321476965,0.03,236.5,236.44,1.0]
[1738321477557,20.0,236.48,236.44,1.0]
[1738321478756,20.0,236.48,236.46,1.0]
[1738321480046,0.03,236.5,236.46,1.0]
[1738321480464,0.03,236.5,236.48,1.0]
[1738321483775,0.03,236.5,236.46,1.0]
[1738321492360,0.03,236.5,236.42,0.063]
[1738321492361,0.03,236.5,236.48,1.0]
[1738321492871,0.03,236.5,236.44,1.0]
[1738321493181,0.03,236.5,236.46,1.0]
[1738321497884,0.03,236.5,236.44,1.0]
[1738321501094,0.03,236.5,236.46,1.0]
[1738321504101,0.03,236.5,236.48,1.0]
[1738321539388,0.03,236.5,236.46,4.229]
[1738321539389,0.03,236.5,236.49,1.0]
[1738321541520,0.03,236.5,236.49,1.63414348]
[1738321542322,0.03,236.5,236.49,1.0]
[1738321542823,0.03,236.5,236.49,5.2285]
[1738321551327,0.03,236.5,236.49,18.64034853]
[1738321551804,0.03,236.5,236.49,239.57445913]
[1738321552011,0.03,236.51,236.5,13.41184853]
[1738321552599,0.03,236.51,236.5,14.41184853]
[1738321553300,0.03,236.51,236.5,15.04578741]
[1738321553502,0.03,236.51,236.5,234.34578741]
[1738321553721,0.03,236.51,236.5,233.71184853]
[1738321554221,0.0001,236.51,236.5,234.89155539]
[1738321558141,0.0001,236.51,236.5,232.71184853]
[1738321558431,0.0001,236.51,236.5,235.55184853]
[1738321560914,0.0001,236.51,236.5,95.71184853]
[1738321561240,0.0001,236.51,236.5,2.84]
[1738321562532,0.0001,236.51,236.5,16.88595149]
[1738321565118,0.0001,236.51,236.5,21.11425149]
[1738321566537,0.0001,236.51,236.5,240.41425149]
[1738321566834,0.0001,236.51,236.5,239.78014853]
[1738321569002,0.0001,236.51,236.5,239.84314853]
[1738321571619,0.0001,236.51,236.5,240.84314853]
[1738321572512,0.0001,236.51,236.5,240.96863853]
[1738321572744,0.0001,236.52,236.51,14.41184853]
[1738321572932,0.0001,236.52,236.51,15.04574504]
[1738321573654,0.0001,236.52,236.51,19.27384504]
[1738321575459,0.0001,236.52,236.51,238.57384504]
[1738321575662,0.0001,236.52,236.51,237.93994853]
[1738321580859,0.0001,236.52,236.51,240.75994853]
[1738321581854,0.0001,236.52,236.51,237.93994853]
[1738321582066,0.0001,236.52,236.51,99.53184853]
[1738321584264,0.0001,236.52,236.51,96.71184853]
[1738321584461,0.0001,236.52,236.51,3.84]
[1738321589176,0.0001,236.52,236.51,1.0]
[1738321590783,0.0001,236.52,236.51,18.63994853]
[1738321591483,0.0001,236.52,236.51,18.70294853]
[1738321594658,0.0001,236.52,236.51,239.00294853]
[1738321601789,0.0001,236.52,236.51,240.05997424]
[1738321602186,0.0001,236.52,236.51,239.05997424]
[1738321604887,0.0001,236.52,236.51,238.00294853]
[1738321607988,0.0001,236.52,236.51,239.00294853]
[1738321608591,0.03,236.59,236.58,14.41184853]
[1738321608771,0.03,236.59,236.58,234.34557067]
[1738321608959,0.03,236.59,236.58,233.71184853]
[1738321609158,0.0001,236.59,236.58,233.71184853]
[1738321609888,0.0001,236.59,236.58,237.93864853]
[1738321616901,0.0001,236.59,236.58,238.06413853]
[1738321617387,0.0001,236.59,236.58,237.93864853]
[1738321623296,0.0001,236.59,236.58,240.75864853]
[1738321628283,0.0001,236.59,236.58,552.75864853]
[1738321630697,0.03,236.7,236.69,1.0]
[1738321633996,0.03,236.7,236.69,5.2249]
[1738321634181,0.03,236.7,236.69,18.63674853]
[1738321634594,0.03,236.7,236.69,19.27031934]
[1738321636908,0.03,236.7,236.69,18.63674853]
[1738321637086,0.03,236.7,236.69,3.84]
[1738321637290,0.03,236.7,236.69,23.84]
[1738321639789,0.03,236.7,236.69,28.0649]
[1738321640109,0.03,236.7,236.69,41.47674853]
[1738321659852,0.03,236.7,236.69,42.11027881]
[1738321661941,0.03,236.7,236.69,41.47674853]
[1738321673640,0.03,236.7,236.69,178.47674853]
[1738321674734,0.03,236.76,236.73,21.0]
[1738321675346,0.03,236.76,236.73,34.41184853]
[1738321675540,0.03,236.76,236.75,1.0]
[1738321675730,0.03,236.76,236.75,151.41184853]
[1738321675931,0.03,236.76,236.75,155.63564853]
[1738321676749,0.03,236.76,236.75,145.3238]
[1738321677133,0.03,236.76,236.75,4.1]
[1738321678748,0.03,236.76,236.75,4.1]
[1738321689166,0.03,236.76,236.75,17.51184853]
[1738321691550,0.03,236.76,236.75,16.51184853]
[1738321692370,0.03,236.76,236.75,3.1]
[1738321694660,0.03,236.76,236.74,141.2239]
[1738321695049,0.03,236.76,236.74,141.2869]
[1738321695249,0.03,236.76,236.74,137.063]
[1738321696749,0.03,236.76,236.74,0.063]
[1738321703074,0.03,236.76,236.74,4.287]
[1738321714491,0.03,236.76,236.74,0.063]
[1738321717676,0.03,236.76,236.74,4.2869]
[1738321722408,0.03,236.76,236.75,4.2238]
[1738321722614,0.03,236.76,236.75,17.63564853]
[1738321725306,0.03,236.76,236.74,4.2868]
[1738321725493,0.03,236.76,236.74,0.063]
[1738321726302,0.03,236.76,236.74,4.287]
[1738321726702,0.03,236.76,236.75,20.0]
[1738321727603,0.03,236.76,236.75,4.2238]
[1738321730189,0.03,236.76,236.75,18.26903481]
[1738321731610,0.03,236.76,236.75,4.2238]
[1738321732897,0.03,236.76,236.75,4.85712995]
[1738321734824,1.5967,236.85,236.79,20.0]
[1738321734995,1.6342,236.92,236.8,13.41184853]
[1738321736213,1.6342,236.92,236.8,17.63464853]
[1738321736399,1.6342,236.92,236.79,20.0]
[1738321738213,1.6342,236.92,236.8,13.41184853]
[1738321741016,1.6642,236.92,236.8,13.41184853]
[1738321741321,1.6642,236.92,236.78,20.0]
[1738321741927,1.6642,236.92,236.79,13.41184853]
[1738321743817,1.6642,236.92,236.79,17.63494853]
[1738321745223,1.6642,236.92,236.78,20.0]
[1738321745523,1.6642,236.92,236.79,20.0]
[1738321745905,1.6642,236.92,236.79,23.2]
[1738321746090,1.6642,236.92,236.79,20.0]
[1738321746294,1.0,236.91,236.79,20.0]
[1738321747418,1.0,236.91,236.78,3.2]
[1738321747722,1.0,236.91,236.79,20.0]
[1738321748110,1.0,236.89,236.78,3.2]
[1738321748822,1.0,236.89,236.79,20.0]
[1738321749927,1.0,236.89,236.76,7.4235]
[1738321750721,1.0,236.89,236.76,24.2235]
[1738321750905,1.6293,236.88,236.76,27.4035]
[1738321751822,0.9999,236.89,236.8,1.0]
[1738321752627,13.41184853,236.88,236.76,21.0]
[1738321752827,6.2615,236.87,236.76,1.0]
[1738321753506,6.2615,236.87,236.76,1.063]
[1738321754840,1.5656,236.86,236.76,1.063]
[1738321756212,1.5656,236.86,236.76,0.063]
[1738321758239,1.5656,236.86,236.78,1.0]
[1738321759433,1.5656,236.86,236.8,1.0]
[1738321762012,20.0,236.89,236.8,1.0]
[1738321762217,20.0,236.89,236.82,1.0]
[1738321762938,20.0,236.9,236.82,1.0]
[1738321767522,21.0299,236.9,236.82,1.0]
[1738321767835,21.0299,236.9,236.8,1.0]
[1738321769934,21.0299,236.9,236.78,1.0]
[1738321772949,0.9999,236.88,236.78,1.0]
[1738321773753,0.9999,236.88,236.8,1.0]
[1738321773948,20.03,236.9,236.8,1.0]
[1738321777150,13.41184853,236.89,236.78,1.0]
[1738321779536,13.41184853,236.89,236.78,1.063]
[1738321779732,0.03,236.9,236.8,1.0]
[1738321780268,20.0,236.89,236.8,1.0]
[1738321784666,0.03,236.9,236.8,1.0]
[1738321786275,20.03,236.9,236.82,1.0]
[1738321786752,20.03,236.9,236.84,1.0]
[1738321786753,0.03,236.9,236.84,1.0]
[1738321788544,0.03,236.9,236.83,1.5196]
[1738321788545,0.03,236.9,236.86,1.0]
[1738321790067,0.03,236.9,236.84,1.0]
[1738321790753,0.03,236.9,236.86,1.0]
[1738321791446,0.03,236.9,236.88,7.4077]
[1738321791968,0.03,236.9,236.89,1.5357]
[1738321792545,0.03,236.9,236.89,5.757]
[1738321792849,0.03,236.9,236.89,19.16884853]
[1738321793262,0.03,236.9,236.89,5.757]
[1738321793654,0.03,236.9,236.89,1.5357]
[1738321795559,0.03,236.9,236.89,14.94754853]
[1738321797947,0.03,236.9,236.89,14.69425853]
[1738321798771,0.03,236.9,236.89,151.69425853]
[1738321799071,0.03,236.92,236.9,17.63294853]
[1738321799259,0.03,236.92,236.91,14.04470409]
[1738321799452,0.03,236.92,236.91,15.04470409]
[1738321800344,0.03,236.92,236.91,14.41184853]
[1738321802469,0.03,236.92,236.91,34.41184853]
[1738321802676,0.03,236.92,236.91,15.41184853]
[1738321803677,0.03,236.92,236.91,34.41184853]
[1738321803866,0.03,236.92,236.91,14.41184853]
[1738321804382,0.03,236.92,236.91,1.0]
[1738321805775,0.03,236.92,236.91,14.41184853]
[1738321806657,0.03,236.92,236.91,15.41184853]
[1738321807266,0.03,236.92,236.91,14.41184853]
[1738321813391,0.03,236.92,236.91,1.0]
[1738321816459,0.03,236.92,236.9,7.6641]
[1738321817169,0.03,236.92,236.9,0.063]
[1738321823088,0.03,236.92,236.91,20.0]
[1738321825383,0.03,236.92,236.9,5.2841]
[1738321831683,0.03,236.92,236.9,0.063]
[1738321832199,1.5892,236.92,236.9,0.063]
[1738321838612,0.03,236.92,236.9,0.063]
[1738321844616,0.03,236.92,236.9,4.2841]
[1738321850218,0.03,236.92,236.91,1.0]
[1738321852215,0.03,236.92,236.91,1.63302379]
[1738321852998,0.03,236.94,236.93,21.0]
[1738321853299,0.03,236.98,236.97,1.0]
[1738321853604,0.03,236.98,236.97,4.32]
[1738321854325,0.03,236.98,236.97,8.5399]
[1738321856314,0.03,236.98,236.95,4.32]
[1738321856707,0.03,236.98,236.95,3.32]
[1738321857321,0.03,236.98,236.95,7.5402]
[1738321857709,0.03,236.98,236.95,8.5402]
[1738321858517,0.03,236.98,236.97,20.0]
[1738321858821,0.03,236.98,236.97,1.0]
[1738321859124,0.03,236.98,236.97,21.0]
[1738321859303,0.03,236.98,236.97,1.0]
[1738321861405,0.03,236.98,236.96,4.2199]
[1738321861601,0.03,236.98,236.94,7.5403]
[1738321862220,0.03,236.98,236.94,3.32]
[1738321862616,0.03,236.98,236.94,7.5404]
[1738321863525,0.03,236.98,236.91,1.0]
[1738321863734,0.03,236.98,236.91,5.2209]
[1738321863914,0.03,236.98,236.9,0.063]
[1738321876335,13.41184853,236.96,236.9,0.063]
[1738321876535,13.41184853,236.94,236.9,0.063]
[1738321877034,1.5369,236.95,236.9,0.063]
[1738321880219,1.5669,236.95,236.9,0.063]
[1738321887627,13.41184853,236.94,236.9,0.063]
[1738321888029,14.41174853,236.94,236.9,0.063]
[1738321888823,34.41174853,236.91,236.9,0.063]
[1738321889550,1.5669,236.95,236.9,0.063]
[1738321889551,0.9999,236.93,236.9,0.063]
[1738321889842,13.41184853,236.94,236.9,0.063]
[1738321890053,14.97874853,236.95,236.9,0.063]
[1738321891624,13.41184853,236.94,236.9,0.063]
[1738321891936,14.41174853,236.94,236.9,0.063]
[1738321892130,34.41174853,236.94,236.9,0.063]
[1738321897069,1.5669,236.95,236.9,0.063]
[1738321897351,0.03,236.95,236.9,0.063]
[1738321904755,0.03,236.95,236.9,1.063]
[1738321905967,0.03,236.95,236.9,5.284]
[1738321908670,0.03,236.95,236.92,1.0]
[1738321908839,0.03,236.95,236.94,1.0]
[1738321909170,0.03,236.95,236.94,21.0]
[1738321910176,0.03,236.95,236.94,1.0]
[1738321910341,0.03,236.95,236.94,5.2204]
[1738321910661,0.03,236.95,236.94,25.2204]
[1738321912583,0.03,236.95,236.94,24.95994853]
[1738321916379,0.03,236.98,236.95,33.41184853]
[1738321917377,0.03,236.98,236.95,34.04461841]
[1738321917873,0.03,236.98,236.96,4.2201]
[1738321918767,0.03,236.98,236.97,25.2199]
[1738321933184,0.03,236.98,236.95,0.063]
[1738321936771,13.41184853,236.97,236.95,0.063]
[1738321939806,0.03,236.98,236.95,0.063]
[1738321940104,0.03,236.97,236.95,0.063]
[1738321940396,13.44184853,236.97,236.95,0.063]
[1738321940711,0.9999,236.92,236.9,0.063]
[1738321940889,13.41184853,236.91,236.9,0.063]
[1738321941299,14.41174853,236.92,236.9,0.063]
[1738321941597,13.41184853,236.92,236.9,0.063]
[1738321944901,13.41184853,236.88,236.84,0.063]
[1738321945288,0.9999,236.89,236.84,0.063]
[1738321945693,13.41184853,236.9,236.84,0.063]
[1738321946200,1.5848,236.91,236.84,0.063]
[1738321952313,7.9663,236.96,236.85,1.0]
[1738321952507,1.5178,236.96,236.85,1.0]
[1738321953491,1.5178,236.96,236.86,4.2219]
[1738321954610,13.41184853,236.95,236.85,4.222]
[1738321954803,13.41184853,236.95,236.84,0.063]
[1738321955522,13.41184853,236.95,236.84,4.2852]
[1738321958519,1.5178,236.96,236.86,1.0]
[1738321959221,13.41184853,236.95,236.84,5.2852]
[1738321959817,0.03,236.97,236.88,4.2215]
[1738321960027,0.03,236.97,236.88,5.2215]
[1738321961510,0.03,236.97,236.94,1.0]
[1738321962515,0.03,236.97,236.94,5.2204]
[1738321962918,0.03,236.97,236.92,5.2207]
[1738321963117,0.03,236.97,236.91,1.5185]
[1738321963718,0.03,236.97,236.91,25.7394]
[1738321963903,0.03,236.97,236.91,5.7394]
[1738321965616,0.03,236.97,236.93,4.2206]
[1738321966818,0.03,236.97,236.92,5.2208]
[1738321967022,0.03,236.97,236.94,1.0]
[1738321967202,0.03,236.97,236.92,5.2208]
[1738321968722,0.03,236.97,236.94,5.2204]
[1738321973798,0.03,236.97,236.96,5.2201]
[1738321974912,0.03,236.97,236.96,11.5341]
[1738321976408,0.0001,236.98,236.97,19.17664853]
[1738321976605,0.0001,236.98,236.97,5.7648]
[1738321976922,0.0001,236.98,236.97,19.80944082]
[1738321977534,0.0001,236.98,236.97,5.7648]
[1738321977939,0.0001,236.98,236.97,4.2199]
[1738321984728,0.0001,236.98,236.97,17.63174853]
[1738321985233,1.7242,237.14,237.0,20.0]